Cogmind - Beta 14 @@@ ROGUE MODE // 2024.10.17 @ 21:02:25 Player: KURIIRI Result: Self-destructed Performance ------------- Evolutions (2) 1000 Regions Visited (7) 1400 Robots Destroyed (71) 355 Value Destroyed (1715) 1715 Prototype IDs (31) 620 Alien Tech Used (0) 0 Bonus (311) 311 TOTAL SCORE: 5401 Bonus ------- High Alert Combat Kills 11 Aligned with FarCom 300 Cogmind --------- Core Integrity 483/550 Matter 277/300 Energy 250/250 System Corruption 0% Temperature Cool (0) Movement Hovering (65) Location -8/Materials Parts ------- > --- POWER (1) -------- Ion Engine > --- PROPULSION (4) --- Airjet Combat Airjet Combat Airjet Combat Airjet > --- UTILITY (4) ------ Large Storage Unit Improved Targeting Computer Medium Armor Plating Hacking Suite > --- WEAPON (2) ------- Ion Cannon Makeshift Sword > --- INVENTORY (15) --- Fission Core Fission Core Combat Airjet Medium Storage Unit Superbattery (1500) Melee Analysis Suite Hardened Medium Armor Plating Hardlight Generator Hacking Suite Improved Assault Rifle Improved Assault Rifle Rocket Launcher Improved Datajack Plasma Cutter Heavy Hammer Peak State ------------ > --- POWER ------------ Ion Engine > --- PROPULSION ------- Airjet Combat Airjet Combat Airjet Combat Airjet > --- UTILITY ---------- Large Storage Unit Improved Targeting Computer Medium Armor Plating Hacking Suite > --- WEAPON ----------- Ion Cannon Makeshift Sword > --- INVENTORY -------- Fission Core Fission Core Combat Airjet Medium Storage Unit Superbattery Medium Armor Plating Hardened Medium Armor Plating Hardlight Generator Hacking Suite Improved Assault Rifle Improved Assault Rifle Rocket Launcher Improved Datajack Plasma Cutter Heavy Hammer [Rating: 39] Favorites ----------- Power Ion Engine Engine Ion Engine Propulsion Light Treads Treads Light Treads Hover Unit Combat Airjet Utility Large Storage Unit Storage Large Storage Unit Processor Improved Targeting Computer Hackware Hacking Suite Protection Medium Armor Plating Weapon Improved Assault Rifle Energy Gun Particle Gun Energy Cannon Beam Cannon Ballistic Gun Improved Assault Rifle Ballistic Cannon Improved Light Cannon Launcher Rocket Launcher Slashing Weapon Makeshift Sword Special Melee Weapon Improved Datajack Build | -11 -10 -10 -9 -9 -9 -8 -8 ------- Run | Yrd Mat Min Mat Min Exi Min Mat Slots Evolved 4 | . . . 2 . . . 2 Power . | . . . . . . . . Propulsion 2 | . . . . . . . 2 Utility 2 | . . . 2 . . . . Weapon . | . . . . . . . . Parts Attached 63 | 7 11 . 34 3 . 3 5 Power 5 | 1 1 . 3 . . . . Engine 5 | 1 1 . 3 . . . . Core . | . . . . . . . . Reactor . | . . . . . . . . Propulsion 14 | 2 . . 6 2 . 2 2 Treads 10 | 2 . . 6 2 . . . Leg . | . . . . . . . . Wheel . | . . . . . . . . Hover 4 | . . . . . . 2 2 Flight . | . . . . . . . . Utility 12 | 1 4 . 6 . . . 1 Device . | . . . . . . . . Storage 3 | 1 2 . . . . . . Processor 3 | . 1 . 2 . . . . Hackware 1 | . . . 1 . . . . Protection 5 | . 1 . 3 . . . 1 Artifact . | . . . . . . . . Weapon 32 | 3 6 . 19 1 . 1 2 Energy Gun 4 | 1 2 . 1 . . . . Energy Cannon 4 | . 1 . 2 . . . 1 Ballistic Gun 13 | 2 2 . 8 1 . . . Ballistic Cannon 2 | . . . 2 . . . . Launcher 3 | . 1 . 1 . . 1 . Special Weapon . | . . . . . . . . Impact Weapon . | . . . . . . . . Slashing Weapon 5 | . . . 4 . . . 1 Piercing Weapon . | . . . . . . . . Special Melee Weapon 1 | . . . 1 . . . . Unidentified Prototypes 1 | . . . 1 . . . . Parts Lost 2 | . . . 2 . . . . Power . | . . . . . . . . Propulsion 1 | . . . 1 . . . . Utility 1 | . . . 1 . . . . Weapon . | . . . . . . . . Highest Loss Streak 1 | . . . 1 . . . . To Critical Strikes . | . . . . . . . . Average Slot Usage (%) 98 | . 97 100 98 100 100 100 100 Engine 11 | . 14 14 11 11 11 11 9 Treads 22 | . 28 28 22 22 22 18 . Hover 2 | . . . . . . 3 36 Storage 11 | . 14 14 11 11 11 11 9 Processor 7 | . 5 . 9 11 11 11 9 Hackware 7 | . . . 10 11 11 11 9 Protection 9 | . 6 14 10 11 11 11 9 Energy Gun 5 | . 13 . 3 . . . . Energy Cannon 2 | . . 14 3 . . . 7 Ballistic Gun 13 | . 13 14 10 22 22 12 6 Launcher 1 | . . . . . . 9 1 Peak Build Rating 39 | 6 11 10 22 22 23 29 39 Average Rating 16 | 4 8 10 18 20 22 23 37 On Entrance 15 | . 6 10 10 21 22 23 29 Naked Turns . | . . . . . . . . Heaviest Build 44 | 14 37 37 44 38 38 39 41 Greatest Support 44 | 40 40 40 40 40 40 40 44 Greatest Overweight (x) 1 | . . . 1 . . 1 . Average Overweight (x) . | . . . . . . . . Largest Inventory Capacity 15 | 8 15 15 15 15 15 15 15 Average Capacity 14 | 6 12 15 15 15 15 15 15 Most Carried 15 | 2 15 15 15 15 15 15 15 Average Carried 12 | 1 8 14 14 14 14 14 14 Final Capacity 15 | 8 15 15 15 15 15 15 15 Final Carried 15 | 2 14 15 15 15 15 15 15 Class Distribution -------------------- 85% | Mutant 13% | Scavenger-Mutant Dominant Class ---------------- Mutant | -10/Materials Mutant | -10/Mines Mutant | -9/Materials Mutant | -9/Mines Mutant | -9/Exiles Mutant | -8/Mines Scavenger-Mutant | -8/Materials Resources | -11 -10 -10 -9 -9 -9 -8 -8 ----------- Run | Yrd Mat Min Mat Min Exi Min Mat Matter Collected 1384 | 201 300 45 578 103 . 32 125 Remotely . | . . . . . . . . Salvage Created 2122 | . 540 101 1112 59 . 21 289 Parts 155 | . 37 4 86 3 . 5 20 Haulers Intercepted 6 | . 2 . 4 . . . . Recyclers Shooed 2 | . . . 1 1 . . . Parts Field Recycled . | . . . . . . . . Retrieved Matter . | . . . . . . . . Parts Self-Destructed . | . . . . . . . . Prevented . | . . . . . . . . Kills | -11 -10 -10 -9 -9 -9 -8 -8 ------- Run | Yrd Mat Min Mat Min Exi Min Mat Combat Hostiles Destroyed 49 | . 12 2 27 . . 4 4 Melee 2 | . . . 2 . . . . Guns 28 | . 10 1 16 . . . 1 Cannons 9 | . . 1 5 . . . 3 AOE 10 | . 2 . 4 . . 4 . Classes Destroyed 10 | . 6 . 3 1 . . . Worker 2 | . . . 1 . . . 1 Builder 2 | . 1 . 1 . . . . Hauler 6 | . 2 . 4 . . . . Recycler 1 | . . . . 1 . . . Operator 3 | . 1 . 2 . . . . Watcher 8 | . 3 . 4 . . . 1 Swarmer 15 | . 3 . 8 . . 4 . Grunt 23 | . 9 2 10 . . . 2 Brawler 2 | . . . 1 . . . 1 Sentry 9 | . . . 8 . . . 1 Best Kill Streak 7 | . 3 2 7 1 . 4 4 Combat Bots Only 6 | . 3 2 6 . . 4 3 Max Kills in Single Turn 4 | . 2 1 4 1 . 2 1 Gunslinging 1 | . 1 . . . . . . Exploded 4 | . 2 . 4 . . 2 . Melee 1 | . . . 1 . . . . Uniques/NPCs Destroyed . | . . . . . . . . Combat | -11 -10 -10 -9 -9 -9 -8 -8 -------- Run | Yrd Mat Min Mat Min Exi Min Mat Hostile Shots Fired 203 | . 58 6 118 . . 2 19 Missed 54 | . 17 1 27 . . 1 8 Damage Taken 2017 | . 545 68 1201 . . 10 193 Core 348 | . 128 17 136 . . . 67 Absorbed by Shields . | . . . . . . . . Regen/Repaired (Parts) 162 | . 43 . 119 . . . . Core Remaining (%) 69 | 100 . 42 . . . 66 . Volleys Fired 184 | . 52 5 91 2 . 2 32 Largest 2 | . 2 2 2 2 . 1 2 Hottest 104 | . 85 80 104 46 . 33 83 Shots Fired 341 | . 96 10 171 4 . 2 58 Gun 253 | . 94 5 124 4 . . 26 Cannon 83 | . . 5 46 . . . 32 Launcher 5 | . 2 . 1 . . 2 . Special . | . . . . . . . . Kinetic 174 | . 43 5 96 4 . . 26 Thermal 162 | . 51 5 74 . . . 32 Explosive 5 | . 2 . 1 . . 2 . Electromagnetic . | . . . . . . . . Robot Hit Streak 16 | . 12 8 16 2 . . 8 Robot Miss Streak 6 | . 5 1 6 1 . . 3 Penetration Max . | . . . . . . . . Secondary Targets 3 | . 3 . . . . . . Max Gunslinging Chain 1 | . 1 . . . . . . Shots Hit Robots 247 | . 59 8 143 3 . . 34 Core Hits 138 | . 29 4 89 1 . 4 11 Critical Kills 1 | . 1 . . . . . . Critical Parts Destroyed . | . . . . . . . . Critical Strikes 4 | . 1 . 3 . . . . Destroy 1 | . 1 . . . . . . Blast 1 | . . . 1 . . . . Sever 2 | . . . 2 . . . . Melee Attacks 23 | . . . 16 . . . 7 Impact . | . . . . . . . . Slashing 23 | . . . 16 . . . 7 Piercing . | . . . . . . . . Sneak Attacks 1 | . . . 1 . . . . Combat Hostiles . | . . . . . . . . Follow-up Attacks . | . . . . . . . . Damage Inflicted 4823 | . 1022 131 2758 45 . 193 674 Guns 2754 | . 817 58 1552 45 . . 282 Cannons 1176 | . . 73 711 . . . 392 Explosions 584 | . 197 . 194 . . 193 . Melee 290 | . . . 290 . . . . Ramming 19 | . 8 . 11 . . . . Kinetic 1855 | . 313 58 1157 45 . . 282 Thermal 2075 | . 504 73 1106 . . . 392 Explosive 584 | . 197 . 194 . . 193 . Electromagnetic . | . . . . . . . . Impact . | . . . . . . . . Slashing 290 | . . . 290 . . . . Piercing . | . . . . . . . . Highest Corruption 1 | . 1 1 . . . . . Average Corruption 1 | . 1 1 . . . . . Corruption Purged . | . . . . . . . . Corruption Blocked . | . . . . . . . . Effects 9 | . 8 1 . . . . . Message Errors 5 | . 5 . . . . . . Matter Fused 1 | . 1 . . . . . . Data Loss (major) 1 | . . 1 . . . . . Misfires 2 | . 2 . . . . . . Overload Shots . | . . . . . . . . Overflow Damage 44 | . . . 44 . . . . Projectiles . | . . . . . . . . Explosions . | . . . . . . . . Melee 44 | . . . 44 . . . . Knockbacks 1 | . . . 1 . . . . Impact . | . . . . . . . . Kinetic 1 | . . . 1 . . . . Secondary . | . . . . . . . . Self-Inflicted Damage . | . . . . . . . . Shots . | . . . . . . . . Rammed 6 | . 2 . 4 . . . . Targets Rammed 7 | . 3 . 4 . . . . Kicked . | . . . . . . . . Crushed 1 | . 1 . . . . . . Highest Temperature 401 | . 321 171 401 . . . 219 Average Temperature 85 | . 78 88 88 . . . 89 Received Heat Transfer 822 | . 261 36 453 . . . 72 Effects 2 | . . . 2 . . . . Interference 2 | . . . 2 . . . . Siege Activations . | . . . . . . . . Robots Corrupted . | . . . . . . . . Combat Hostiles . | . . . . . . . . Parts Fried . | . . . . . . . . Impact Corruptions . | . . . . . . . . Robots Melted . | . . . . . . . . Combat Hostiles . | . . . . . . . . Parts Melted 4 | . 2 . 2 . . . . Heat Transferred 3711 | . 1295 148 1639 . . . 629 Parts Sabotaged . | . . . . . . . . Parts Stolen . | . . . . . . . . Parts Stripped . | . . . . . . . . Power Chain Reactions . | . . . . . . . . Alert | -11 -10 -10 -9 -9 -9 -8 -8 ------- Run | Yrd Mat Min Mat Min Exi Min Mat Peak Influence 411 | . 183 50 411 42 . 108 304 Initial 42 | . . . 19 42 . . 41 Average 108 | . 66 30 171 13 . 96 148 Maximum Alert Level 2 | . . . 2 . . . 1 Low Security (%) 79 | 100 100 100 53 100 . 100 70 Level 1 20 | . . . 46 . . . 29 Level 2 . | . . . . . . . . Level 3 . | . . . . . . . . Level 4 . | . . . . . . . . Level 5 . | . . . . . . . . High Security . | . . . . . . . . Max Security . | . . . . . . . . Squads Dispatched 9 | . 3 . 5 . . . 1 Investigation 7 | . 2 . 4 . . . 1 Extermination . | . . . . . . . . Reinforcement 2 | . 1 . 1 . . . . Assault . | . . . . . . . . Garrison . | . . . . . . . . Intercept . | . . . . . . . . Searches Triggered . | . . . . . . . . Construction Impeded . | . . . . . . . . Haulers Reinforced . | . . . . . . . . Active Scanning Responses . | . . . . . . . . Cargo Convoy Interrupts . | . . . . . . . . Stealth | -11 -10 -10 -9 -9 -9 -8 -8 --------- Run | Yrd Mat Min Mat Min Exi Min Mat Distress Signals 8 | . . . 4 . . . 4 Communications Jammed . | . . . . . . . . Distress Signals . | . . . . . . . . Times Spotted 85 | . 20 2 46 4 . 1 12 Peak Tracking Total 6 | . 4 2 6 3 . 2 4 Tactical Retreats 6 | . . . 2 1 . . 3 Traps | -11 -10 -10 -9 -9 -9 -8 -8 ------- Run | Yrd Mat Min Mat Min Exi Min Mat Traps Triggered 2 | . 2 . . . . . . Indirectly . | . . . . . . . . Trap Hack Attempts 19 | . . . 19 . . . . Triggered 1 | . . . 1 . . . . Disarmed . | . . . . . . . . Reprogrammed 2 | . . . 2 . . . . Reused . | . . . . . . . . Traps Extracted . | . . . . . . . . Installed . | . . . . . . . . Triggered . | . . . . . . . . Machines | -11 -10 -10 -9 -9 -9 -8 -8 ---------- Run | Yrd Mat Min Mat Min Exi Min Mat Machines Disabled . | . . . . . . . . Max in Single Turn . | . . . . . . . . Machines Repaired . | . . . . . . . . Machines Dismantled . | . . . . . . . . Machines Sabotaged . | . . . . . . . . Overloaded Fab Kills . | . . . . . . . . Hacking | -11 -10 -10 -9 -9 -9 -8 -8 --------- Run | Yrd Mat Min Mat Min Exi Min Mat Machines Accessed 26 | . 9 . 10 . 2 . 5 Terminals 19 | . 7 . 8 . . . 4 Fabricators . | . . . . . . . . Repair Stations 3 | . 1 . 2 . . . . Recycling Units 1 | . 1 . . . . . . Scanalyzers 1 | . . . . . . . 1 Garrison Access . | . . . . . . . . Total Hacks 86 | . 28 . 36 . 5 . 17 Successful 58 | . 16 . 22 . 5 . 15 Failed 26 | . 12 . 13 . . . 1 Catastrophic 6 | . 4 . 2 . . . . Database Lockouts 2 | . . . 1 . . . 1 Manual 41 | . 16 . 15 . 1 . 9 Terminals 69 | . 25 . 32 . . . 12 Fabricators . | . . . . . . . . Repair Stations 6 | . 2 . 4 . . . . Recycling Units 1 | . 1 . . . . . . Scanalyzers 5 | . . . . . . . 5 Garrison Access . | . . . . . . . . Terminal Hacks 32 | . 8 . 14 . 5 . 5 Record 6 | . . . 2 . 4 . . Robot Analysis 4 | . 1 . 2 . . . 1 Prototype ID Bank 6 | . 2 . 3 . . . 1 Branch Access Points 1 | . 1 . . . . . . Terminal Index 3 | . 1 . 1 . . . 1 Unreport Threat 6 | . 2 . 3 . . . 1 Locate Traps 5 | . 1 . 3 . . . 1 Derelict Proto ID Bank 1 | . . . . . 1 . . Fabricator Hacks . | . . . . . . . . Repair Station Hacks 5 | . 2 . 3 . . . . Scan Component 3 | . 1 . 2 . . . . Repair 2 | . 1 . 1 . . . . Recycling Unit Hacks 1 | . 1 . . . . . . Retrieve Components 1 | . 1 . . . . . . Scanalyzer 5 | . . . . . . . 5 Insert Component 2 | . . . . . . . 2 Analyze 3 | . . . . . . . 3 Garrison Access Hacks . | . . . . . . . . Unauthorized Hacks 15 | . 5 . 5 . . . 5 Terminals 15 | . 5 . 5 . . . 5 Assimilate 3 | . 1 . 1 . . . 1 Botnet 9 | . 3 . 3 . . . 3 Operators 3 | . 1 . 1 . . . 1 Fabricators . | . . . . . . . . Repair Stations . | . . . . . . . . Recycling Units . | . . . . . . . . Scanalyzers . | . . . . . . . . Garrison Access . | . . . . . . . . Data Cores Recovered 1 | . . . 1 . . . . Used . | . . . . . . . . Hacking Detections 21 | . 7 . 9 . . . 5 Full Trace Events 8 | . 3 . 4 . . . 1 Feedback Events 1 | . 1 . . . . . . Corruption 1 | . 1 . . . . . . Feedback Blocked . | . . . . . . . . Robot Schematics Acquired . | . . . . . . . . Robots Built . | . . . . . . . . Authchips . | . . . . . . . . Time . | . . . . . . . . Total Robot Build Rating . | . . . . . . . . Part Schematics Acquired 1 | . . . . . . . 1 Parts Built . | . . . . . . . . Authchips . | . . . . . . . . Time . | . . . . . . . . Total Part Build Rating . | . . . . . . . . Parts Repaired 2 | . 1 . 1 . . . . Time 58 | . 26 . 32 . . . . Parts Recycled . | . . . . . . . . Recycled Matter . | . . . . . . . . Retrieved Matter . | . . . . . . . . Retrieved Components 10 | . 10 . . . . . . Parts Scanalyzed 1 | . . . . . . . 1 Part Schematics Acquired 1 | . . . . . . . 1 Parts Damaged . | . . . . . . . . Bothacking | -11 -10 -10 -9 -9 -9 -8 -8 ------------ Run | Yrd Mat Min Mat Min Exi Min Mat Used RIF Installer . | . . . . . . . . Robots Hacked . | . . . . . . . . Non-combat . | . . . . . . . . Combat . | . . . . . . . . Robot Hacks Applied . | . . . . . . . . Relay Couplers Released . | . . . . . . . . Fabnet Peak Effective % . | . . . . . . . . Robots Rewired . | . . . . . . . . Allies Hacked . | . . . . . . . . Hacks Repelled . | . . . . . . . . Allies | -11 -10 -10 -9 -9 -9 -8 -8 -------- Run | Yrd Mat Min Mat Min Exi Min Mat Total Allies 4 | . . . 1 3 . . . Largest Group 4 | . . . 1 4 1 1 1 Highest-Rated Group 50 | . . . 10 50 10 10 10 Highest-Rated Ally 16 | . . . 10 16 10 10 10 Total Orders 4 | . . . 2 2 . . . STAY 2 | . . . 1 1 . . . FOLLOW 2 | . . . 1 1 . . . Ally Attacks 16 | . . . . 16 . . . Total Damage 130 | . . . . 130 . . . Kills 2 | . . . . 2 . . . Allies Corrupted . | . . . . . . . . Allies Melted . | . . . . . . . . Intel | -11 -10 -10 -9 -9 -9 -8 -8 ------- Run | Yrd Mat Min Mat Min Exi Min Mat Robot Analysis Total 4 | . 1 . 2 . . . 1 Derelict Logs Recovered 2 | . . 1 . 1 . . . Drone Launches . | . . . . . . . . Drone Recoveries . | . . . . . . . . Exploration | -11 -10 -10 -9 -9 -9 -8 -8 ------------- Run | Yrd Mat Min Mat Min Exi Min Mat Turns Passed 5126 | 75 1392 357 1900 380 363 337 322 Spaces Moved 2698 | 43 673 211 850 218 221 206 276 Core 5 | 5 . . . . . . . Treads 2380 | 38 673 211 850 218 221 169 . Legs . | . . . . . . . . Wheels . | . . . . . . . . Hover 313 | . . . . . . 37 276 Flight . | . . . . . . . . Fastest Speed 50 | 50 160 160 160 160 160 147 65 Average Speed 151 | 147 160 160 164 160 160 157 65 Slowest Speed 240 | 160 160 160 240 160 160 160 65 Overloaded Moves . | . . . . . . . . Propulsion Burnouts . | . . . . . . . . Robots Hopped . | . . . . . . . . Cave-ins Triggered . | . . . . . . . . Exploration Rate (%) 54 | 3 93 61 83 53 59 49 32 Regions Visited 7 Branch Regions 4 Pre-discovered Areas 3 | . . 1 . 1 1 . . Known Exits Taken 1 | . 1 . . . . . . Unknown Exits Taken 6 | 1 . 1 1 1 1 1 . Scrap Searched 2 | . . 1 . . . 1 . Spaces Dug 14 | . . . 7 . . . 7 Terrain Destroyed 56 | . 13 . 10 . . 21 12 Melee 14 | . . . 7 . . . 7 Projectile 7 | . . . 2 . . . 5 AOE 35 | . 13 . 1 . . 21 . Terrain Rammed . | . . . . . . . . Walls Destroyed . | . . . . . . . . Machines Disabled . | . . . . . . . . Actions | -11 -10 -10 -9 -9 -9 -8 -8 --------- Run | Yrd Mat Min Mat Min Exi Min Mat Total 3380 | 51 890 223 1166 247 234 216 353 Wait 299 | . 136 3 115 15 . 2 28 Move 2691 | 42 672 210 849 217 220 205 276 Hop . | . . . . . . . . Pick Up 51 | 2 11 3 18 5 7 2 3 Fast Attach 11 | 6 3 . 2 . . . . Attach 7 | . 1 . 4 . . . 2 Detach 2 | . 1 . 1 . . . . Swap 45 | 1 7 . 28 3 . 3 3 Drop 41 | . 4 2 19 5 7 2 2 Fire 184 | . 52 5 91 2 . 2 32 Melee 23 | . . . 16 . . . 7 Ram . | . . . . . . . . Kick . | . . . . . . . . Crush 7 | . 3 . 4 . . . . Escape Stasis . | . . . . . . . . Rewire . | . . . . . . . . Trap 19 | . . . 19 . . . . Miscellaneous . | . . . . . . . . Route ------- -11/Scrapyard -10/Materials (discovered 5 exits: *Mat x3 / *Min x2) -10/Mines -9/Materials (discovered 4 exits: *Mat x2 / [*Min x2]) -9/Mines (discovered 2 exits: *Mat / *Exi) -9/Exiles -8/Mines -8/Materials History --------- Turn | Location | Event 9 | -11/Scrapyard | Discovered new exit (range 15) 76 | -11/Scrapyard | Entered Materials 113 | -10/Materials | Discovered new exit (range 6) 264 | -10/Materials | Identified exit to Mines 269 | -10/Materials | Discovered new exit (range 16) 331 | -10/Materials | Build established: Mutant 673 | -10/Materials | Discovered new exit (range 14) 917 | -10/Materials | Repaired Grenade Launcher 1092 | -10/Materials | Core integrity fell below 50% 1218 | -10/Materials | Discovered new exit (range 15) 1468 | -10/Materials | Entered Mines 1614 | -10/Mines | Learned location of Zion (-6) 1648 | -10/Mines | A weapon hastily lodged in a ceiling crevice suddenly fell to the ground 1816 | -10/Mines | Discovered new exit (range 6) 1825 | -10/Mines | Entered Materials 1825 | -9/Materials | Evolved 2 slots: Utility x2 2395 | -9/Materials | Central database locked down 2400 | -9/Materials | Discovered new exit (range 11) 2623 | -9/Materials | Discovered new exit (range 16) 2647 | -9/Materials | Build established: Scavenger-Mutant 2857 | -9/Materials | Discovered new exit (range 12) 2949 | -9/Materials | Build established: Mutant 3529 | -9/Materials | Repaired Med. Armor Plating 3535 | -9/Materials | Discovered new exit (range 3) 3725 | -9/Materials | Entered Mines 3725 | -9/Mines | Accompanied by 1 ally 3730 | -9/Mines | Assisted by bots powering up and referring to "LRC-V3" 3784 | -9/Mines | Assembled infested the area 3882 | -9/Mines | Learned location of Storage (-8) 4078 | -9/Mines | Discovered new exit (range 3) 4096 | -9/Mines | Discovered new exit (range 5) 4105 | -9/Mines | Entered Exiles 4105 | -9/Exiles | Accompanied by 1 ally 4150 | -9/Exiles | Met 8R-AWN 4177 | -9/Exiles | Met EX-HEX 4220 | -9/Exiles | Met EX-BIN 4240 | -9/Exiles | Aligned with FarCom system 4241 | -9/Exiles | Given EX-Vault access code 4281 | -9/Exiles | Opened EX-Vault 4290 | -9/Exiles | Found Superbattery 4321 | -9/Exiles | Warned to stay clear of 0b10 Research branches 4367 | -9/Exiles | Met EX-DEC 4452 | -9/Exiles | Discovered new exit (range 12) 4468 | -9/Exiles | Left Exiles lab with Superbattery 4468 | -9/Exiles | Entered Mines 4468 | -8/Mines | Accompanied by 1 ally 4681 | -8/Mines | Discovered new exit (range 11) 4732 | -8/Mines | Found DCF Scrap (15 items) 4805 | -8/Mines | Entered Materials 4805 | -8/Materials | Accompanied by 1 ally 4805 | -8/Materials | Evolved 2 slots: Propulsion x2 5117 | -8/Materials | Build established: Scavenger-Mutant 5127 | -8/Materials | Central database locked down 5127 | -8/Materials | Self-destructed Last Messages --------------- Operator tracking enabled and active. 05110_ Connecting with Terminal... >>Analysis(Y-45 Defender) Downloading analysis... Y-45 Defender Tier: 2 Y-series armored sentries are equipped with a mix of thermal and kinetic weaponry. The Y-45 guards important locations and vital machinery, and remains at its station unless they identify a hostile robot or are alerted to the presence of one nearby. 05127_ Connecting with Terminal... >>Trojan(Botnet) Trojan loaded successfully. Testing... Terminal linked with 2 systems. Awaiting botnet instructions. 05127_ ALERT: Central database lockdown, local access denied. Map ----- +----------------------------------------------------+ | | | | | | | | | | | | | | | | | | | | | | | | | | | | | | | | | ?????????????????????????????????? | | ???????????????#########?????????? | | ??????######??? #?????????? | | ??????# ! #??# #?????????? | | ??????# #??# #?????????? | | ??????# = #### ! #?????????? | | ?????Y# # # !!! #?????????? | | ??????# # + !!! #?????????? | | ??????#"" + # !!! #?????????? | | ??????#"T@ # # #?????????? | | ??????#"" # # #?????????? | | ??????# # ###########????????? | | ??????###### + #????????? | | ??????# ??# # #????????? | | ??????# ??# #? #????????? | | ??????+ ### # #????????? | | ??????# # = #????????? | | ??????# / #????????? | | ??????# ### ## ! = = #????????? | | ?????## #?# #? #????????? | | ????? # ###+############????????? | | ????" # # #?????????????? | | ????" # # T """ #?????????????? | | ???"" # # """ #?????????????? | | # """ # # ] """ #?????????????? | | # + + """ #?????????????? | | # """ # # ] """ #?????????????? | | # """ # # #?????????????? | | # """ # # #?????????????? | | # # #############???????????? | | #[ # +??????????#"#######????? | | # + #??????????## """ #????? | | ??##### #??????????#" "T" #????? | | ####### #??????????## #????? | +----------------------------------------------------+ Best States ------------- Heat Dissipation 31 Energy Generation 14 Energy Capacity 280 Matter Stores 300 Matter Capacity 300 Sight Range 16 Terrain Scan Density 10 Armor Coverage 225 Evasion (%) 52 Targeting Accuracy 6 Recoil Reduction 2 Offensive Hacking 10 Item Schematics ----------------- Cmb. Airjet | -8/Materials | Scanalyzed Robot Schematics ------------------ None Fabricated ------------ Nothing Alien Tech Used ----------------- None Achievements -------------- None Challenges ------------ None Game ------ Seed MobileHeavyScrap Manual? 0 Play Time 00:49:12 Cumulative 124.1 hours Start 2024.10.16 @ 16:24:54 End 2024.10.17 @ 21:02:25 Sessions 6 Manual Loads 0 Difficulty Rogue Special Mode None Game No. 79 Rogue 43 Adventurer 36 Explorer 0 Win Type - Total 2 Types 2/0/0/0/0/0/0/0/0 Lore% 53 Gallery% 59 Achievement% 52 Wizard Run 0 Options --------- Layout 1 ASCII 0 Keyboard 0 Movement Numpad Keybinds 0 Fullscreen 1 Font 48/Smallcaps Map View 50x35 Zoom Use 0% Tactical HUD 1 Map Filters NONE Filters NONE Steam 1 RUN: 8adace8c-cc3b-4ada-b743-464e73edf469